{"text_format":"3","workbook":"xlsx","n_sheets":2,"sheets":["Труд","Направления"],"not_rendered":{"defined_names":9},"read":"whole","date_system":"1900"}

{"sheet":"Труд","index":0,"n_rows":167,"n_cols":16,"rows_kept":167}
["№","Фамилия","Имя","Отчество","Пол","Участник с ОВЗ","Класс","Класс участия","Балл","Макс. Балл","Статус","Призер МЭ прошлого года","Учитель","Место работы учителя","Профиль/Направление","Виды практик"]
[1,"Гадершин","Ринат","Рустемович","М","нет","6д",6,10.5,60,"участник","нет ","Киямов Анас Срурович ","МБОУ \"Гимназия №32\"",{"$f":"IF(E2=\"М\",\"Техника, технология и техническое творчество\",\"Культура дома, дизайн и технологии\")","v":"Техника, технология и техническое творчество"},{"$f":"IF(O2=\"Техника, технология и техническое творчество\",\"Ручная деревообработка\",\"Моделирование и механическая обработка швейного изделия\")","v":"Ручная деревообработка"}]
[2,"Гарифуллин","Ильяс","Раисович","М","нет","6д",6,5,60,"участник","нет ","Киямов Анас Срурович ","МБОУ \"Гимназия №32\"",{"$f":"IF(E3=\"М\",\"Техника, технология и техническое творчество\",\"Культура дома, дизайн и технологии\")","v":"Техника, технология и техническое творчество"},"Ручная деревообработка"]
[3,"Гиззатов","Карим","Тимурович","М","нет","6д",6,9,60,"участник","нет ","Киямов Анас Срурович ","МБОУ \"Гимназия №32\"",{"$f":"IF(E4=\"М\",\"Техника, технология и техническое творчество\",\"Культура дома, дизайн и технологии\")","v":"Техника, технология и техническое творчество"},"Ручная деревообработка"]
[4,"Гилемханов","Амир","Дамирович","М","нет","6д",6,9.5,60,"участник","нет ","Киямов Анас Срурович ","МБОУ \"Гимназия №32\"",{"$f":"IF(E5=\"М\",\"Техника, технология и техническое творчество\",\"Культура дома, дизайн и технологии\")","v":"Техника, технология и техническое творчество"},{"$f":"IF(O5=\"Техника, технология и техническое творчество\",\"Ручная деревообработка\",\"Моделирование и механическая обработка швейного изделия\")","v":"Ручная деревообработка"}]
[5,"Нигаматуллин","Султан","Ильсурович","М","нет","6д",6,5,60,"участник","нет ","Киямов Анас Срурович ","МБОУ \"Гимназия №32\"",{"$f":"IF(E6=\"М\",\"Техника, технология и техническое творчество\",\"Культура дома, дизайн и технологии\")","v":"Техника, технология и техническое творчество"},"Ручная деревообработка"]
[6,"Низамов","Ранил","Ленарович","М","нет","6д",6,10,60,"участник","нет ","Киямов Анас Срурович ","МБОУ \"Гимназия №32\"",{"$f":"IF(E7=\"М\",\"Техника, технология и техническое творчество\",\"Культура дома, дизайн и технологии\")","v":"Техника, технология и техническое творчество"},"Ручная деревообработка"]
[7,"Свиньяков","Матвей","Анатольевич","М","нет","6д",6,9.5,60,"участник","нет ","Киямов Анас Срурович ","МБОУ \"Гимназия №32\"",{"$f":"IF(E8=\"М\",\"Техника, технология и техническое творчество\",\"Культура дома, дизайн и технологии\")","v":"Техника, технология и техническое творчество"},"Ручная деревообработка"]
[8,"Хуснуллин","Амир","Артурович","М","нет","6д",6,12,60,"участник","нет ","Киямов Анас Срурович ","МБОУ \"Гимназия №32\"",{"$f":"IF(E9=\"М\",\"Техника, технология и техническое творчество\",\"Культура дома, дизайн и технологии\")","v":"Техника, технология и техническое творчество"},"Ручная деревообработка"]
[9,"Чернов","Карим","Альбертович","М","нет","6д",6,8,60,"участник","нет ","Киямов Анас Срурович ","МБОУ \"Гимназия №32\"",{"$f":"IF(E10=\"М\",\"Техника, технология и техническое творчество\",\"Культура дома, дизайн и технологии\")","v":"Техника, технология и техническое творчество"},"Ручная деревообработка"]
[10,"Шагитов","Азамат","Радикович","М","нет","6д",6,3,60,"участник","нет ","Киямов Анас Срурович ","МБОУ \"Гимназия №32\"",{"$f":"IF(E11=\"М\",\"Техника, технология и техническое творчество\",\"Культура дома, дизайн и технологии\")","v":"Техника, технология и техническое творчество"},"Ручная деревообработка"]
[11,"Шарипзянов","Ильдан","Ильфатович","М","нет","6д",6,8,60,"участник","нет ","Киямов Анас Срурович ","МБОУ \"Гимназия №32\"",{"$f":"IF(E12=\"М\",\"Техника, технология и техническое творчество\",\"Культура дома, дизайн и технологии\")","v":"Техника, технология и техническое творчество"},"Ручная деревообработка"]
[12,"Мифтахутдинов","Альмир","Альбертович","М","нет",7,7,1,60,"участник","нет ","Киямов Анас Срурович ","МБОУ \"Гимназия №32\"",{"$f":"IF(E13=\"М\",\"Техника, технология и техническое творчество\",\"Культура дома, дизайн и технологии\")","v":"Техника, технология и техническое творчество"},"Ручная деревообработка"]
[13,"Фахертдинова","Карина","Руслановна","Ж","нет",7,7,15,60,"участник","нет ","Гаранина Елена Олеговна ","МБОУ \"Гимназия №32\"",{"$f":"IF(E14=\"М\",\"Техника, технология и техническое творчество\",\"Культура дома, дизайн и технологии\")","v":"Культура дома, дизайн и технологии"},"Моделирование и механическая обработка швейного изделия"]
[14,"Хаеркаева","Алина","Ринатовна","Ж","нет",7,7,14,60,"участник","нет ","Гаранина Елена Олеговна ","МБОУ \"Гимназия №32\"",{"$f":"IF(E15=\"М\",\"Техника, технология и техническое творчество\",\"Культура дома, дизайн и технологии\")","v":"Культура дома, дизайн и технологии"},"Моделирование и механическая обработка швейного изделия"]
[15,"Царёва","Мирослава","Анатольевна","Ж","нет",7,7,13,60,"участник","нет ","Гаранина Елена Олеговна ","МБОУ \"Гимназия №32\"",{"$f":"IF(E16=\"М\",\"Техника, технология и техническое творчество\",\"Культура дома, дизайн и технологии\")","v":"Культура дома, дизайн и технологии"},"Моделирование и механическая обработка швейного изделия"]
[16,"Миндубаева","Алия","Дамировна","Ж","нет",7,7,10,60,"участник","нет ","Гаранина Елена Олеговна ","МБОУ \"Гимназия №32\"",{"$f":"IF(E17=\"М\",\"Техника, технология и техническое творчество\",\"Культура дома, дизайн и технологии\")","v":"Культура дома, дизайн и технологии"},"Моделирование и механическая обработка швейного изделия"]
[17,"Токарева ","Варвара","Анатольевна","Ж","нет",7,7,12,60,"участник","нет ","Гаранина Елена Олеговна ","МБОУ \"Гимназия №32\"",{"$f":"IF(E18=\"М\",\"Техника, технология и техническое творчество\",\"Культура дома, дизайн и технологии\")","v":"Культура дома, дизайн и технологии"},"Моделирование и механическая обработка швейного изделия"]
[18,"Андин","Иван","Андреевич","М","нет","7а",7,7.5,60,"участник","нет ","Киямов Анас Срурович ","МБОУ \"Гимназия №32\"",{"$f":"IF(E19=\"М\",\"Техника, технология и техническое творчество\",\"Культура дома, дизайн и технологии\")","v":"Техника, технология и техническое творчество"},"Ручная деревообработка"]
[19,"Ахметшин","Карим","Вилевич","М","нет","7а",7,5.5,60,"участник","нет ","Киямов Анас Срурович ","МБОУ \"Гимназия №32\"",{"$f":"IF(E20=\"М\",\"Техника, технология и техническое творчество\",\"Культура дома, дизайн и технологии\")","v":"Техника, технология и техническое творчество"},"Ручная деревообработка"]
[20,"Валдавин ","Алексей","Андреевич","М","нет","7а",7,43,60,"победитель","нет ","Киямов Анас Срурович ","МБОУ \"Гимназия №32\"",{"$f":"IF(E21=\"М\",\"Техника, технология и техническое творчество\",\"Культура дома, дизайн и технологии\")","v":"Техника, технология и техническое творчество"},"Ручная деревообработка"]
[21,"Иванов ","Артем","Витальевич","М","нет","7а",7,8.5,60,"участник","нет ","Киямов Анас Срурович ","МБОУ \"Гимназия №32\"",{"$f":"IF(E22=\"М\",\"Техника, технология и техническое творчество\",\"Культура дома, дизайн и технологии\")","v":"Техника, технология и техническое творчество"},"Ручная деревообработка"]
[22,"Кошкин","Захар","Александрович","М","нет","7а",7,7.5,60,"участник","нет ","Киямов Анас Срурович ","МБОУ \"Гимназия №32\"",{"$f":"IF(E23=\"М\",\"Техника, технология и техническое творчество\",\"Культура дома, дизайн и технологии\")","v":"Техника, технология и техническое творчество"},"Ручная деревообработка"]
[23,"Кутырев","Амир","Рашидович","М","нет","7а",7,5.5,60,"участник","нет ","Киямов Анас Срурович ","МБОУ \"Гимназия №32\"",{"$f":"IF(E24=\"М\",\"Техника, технология и техническое творчество\",\"Культура дома, дизайн и технологии\")","v":"Техника, технология и техническое творчество"},"Ручная деревообработка"]
[24,"Лисин","Тимофей","Николаевич","М","нет","7а",7,11,60,"участник","нет ","Киямов Анас Срурович ","МБОУ \"Гимназия №32\"",{"$f":"IF(E25=\"М\",\"Техника, технология и техническое творчество\",\"Культура дома, дизайн и технологии\")","v":"Техника, технология и техническое творчество"},"Ручная деревообработка"]
[25,"Мижарёв","Марсель","Владиславович","М","нет","7а",7,8.5,60,"участник","нет ","Киямов Анас Срурович ","МБОУ \"Гимназия №32\"",{"$f":"IF(E26=\"М\",\"Техника, технология и техническое творчество\",\"Культура дома, дизайн и технологии\")","v":"Техника, технология и техническое творчество"},"Ручная деревообработка"]
[26,"Патрушев","Иван","Александрович","М","нет","7а",7,5.5,60,"участник","нет ","Киямов Анас Срурович ","МБОУ \"Гимназия №32\"",{"$f":"IF(E27=\"М\",\"Техника, технология и техническое творчество\",\"Культура дома, дизайн и технологии\")","v":"Техника, технология и техническое творчество"},"Ручная деревообработка"]
[27,"Поликарпов","Никита","Максимович","М","нет","7а",7,12,60,"участник","нет ","Киямов Анас Срурович ","МБОУ \"Гимназия №32\"",{"$f":"IF(E28=\"М\",\"Техника, технология и техническое творчество\",\"Культура дома, дизайн и технологии\")","v":"Техника, технология и техническое творчество"},"Ручная деревообработка"]
[28,"Киршина ","Мария","Павловна","Ж","нет","7а",7,50,60,"победитель","нет ","Гаранина Елена Олеговна ","МБОУ \"Гимназия №32\"",{"$f":"IF(E29=\"М\",\"Техника, технология и техническое творчество\",\"Культура дома, дизайн и технологии\")","v":"Культура дома, дизайн и технологии"},"Моделирование и механическая обработка швейного изделия"]
[29,"Логинова","Ульяна","Николаевна","Ж","нет","7а",7,14,60,"участник","нет ","Гаранина Елена Олеговна ","МБОУ \"Гимназия №32\"",{"$f":"IF(E30=\"М\",\"Техника, технология и техническое творчество\",\"Культура дома, дизайн и технологии\")","v":"Культура дома, дизайн и технологии"},"Моделирование и механическая обработка швейного изделия"]
[30,"Лосева","Ева","Александровна","Ж","нет","7а",7,16,60,"участник","нет ","Гаранина Елена Олеговна ","МБОУ \"Гимназия №32\"",{"$f":"IF(E31=\"М\",\"Техника, технология и техническое творчество\",\"Культура дома, дизайн и технологии\")","v":"Культура дома, дизайн и технологии"},"Моделирование и механическая обработка швейного изделия"]
[31,"Патрушева","Жанна","Александровна","Ж","нет","7а",7,11,60,"участник","нет ","Гаранина Елена Олеговна ","МБОУ \"Гимназия №32\"",{"$f":"IF(E32=\"М\",\"Техника, технология и техническое творчество\",\"Культура дома, дизайн и технологии\")","v":"Культура дома, дизайн и технологии"},"Моделирование и механическая обработка швейного изделия"]
[32,"Петрунина","Софья","Сергеевна","Ж","нет","7а",7,16,60,"участник","нет ","Гаранина Елена Олеговна ","МБОУ \"Гимназия №32\"",{"$f":"IF(E33=\"М\",\"Техника, технология и техническое творчество\",\"Культура дома, дизайн и технологии\")","v":"Культура дома, дизайн и технологии"},"Моделирование и механическая обработка швейного изделия"]
[33,"Порецкова","Ева","Анатольевна","Ж","нет","7а",7,3,60,"участник","нет ","Гаранина Елена Олеговна ","МБОУ \"Гимназия №32\"",{"$f":"IF(E34=\"М\",\"Техника, технология и техническое творчество\",\"Культура дома, дизайн и технологии\")","v":"Культура дома, дизайн и технологии"},"Моделирование и механическая обработка швейного изделия"]
[34,"Слесарева","Валерия","Максимовна","Ж","нет","7а",7,11,60,"участник","нет ","Гаранина Елена Олеговна ","МБОУ \"Гимназия №32\"",{"$f":"IF(E35=\"М\",\"Техника, технология и техническое творчество\",\"Культура дома, дизайн и технологии\")","v":"Культура дома, дизайн и технологии"},"Моделирование и механическая обработка швейного изделия"]
[35,"Табакина","Виктория","Андреевна","Ж","нет","7а",7,12,60,"участник","нет ","Гаранина Елена Олеговна ","МБОУ \"Гимназия №32\"",{"$f":"IF(E36=\"М\",\"Техника, технология и техническое творчество\",\"Культура дома, дизайн и технологии\")","v":"Культура дома, дизайн и технологии"},"Моделирование и механическая обработка швейного изделия"]
[36,"Абызова","Эмилия","Аделевна","Ж","нет","7б",7,13,60,"участник","нет ","Гаранина Елена Олеговна ","МБОУ \"Гимназия №32\"",{"$f":"IF(E37=\"М\",\"Техника, технология и техническое творчество\",\"Культура дома, дизайн и технологии\")","v":"Культура дома, дизайн и технологии"},{"$f":"IF(O37=\"Техника, технология и техническое творчество\",\"Ручная деревообработка\",\"Моделирование и механическая обработка швейного изделия\")","v":"Моделирование и механическая обработка швейного изделия"}]
[37,"Березкина ","Милана ","Александровна ","Ж","нет","7б",7,12,60,"участник","нет ","Гаранина Елена Олеговна ","МБОУ \"Гимназия №32\"",{"$f":"IF(E38=\"М\",\"Техника, технология и техническое творчество\",\"Культура дома, дизайн и технологии\")","v":"Культура дома, дизайн и технологии"},"Моделирование и механическая обработка швейного изделия"]
[38,"Гатина","Эльза","Азатовна","Ж","нет","7б",7,38,60,"участник","нет ","Гаранина Елена Олеговна ","МБОУ \"Гимназия №32\"",{"$f":"IF(E39=\"М\",\"Техника, технология и техническое творчество\",\"Культура дома, дизайн и технологии\")","v":"Культура дома, дизайн и технологии"},"Моделирование и механическая обработка швейного изделия"]
[39,"Гильманова","Сафина","Ленаровна","Ж","нет","7б",7,16,60,"участник","нет ","Гаранина Елена Олеговна ","МБОУ \"Гимназия №32\"",{"$f":"IF(E40=\"М\",\"Техника, технология и техническое творчество\",\"Культура дома, дизайн и технологии\")","v":"Культура дома, дизайн и технологии"},"Моделирование и механическая обработка швейного изделия"]
[40,"Зарипова","Алина","Данилевна","Ж","нет","7б",7,12,60,"участник","нет ","Гаранина Елена Олеговна ","МБОУ \"Гимназия №32\"",{"$f":"IF(E41=\"М\",\"Техника, технология и техническое творчество\",\"Культура дома, дизайн и технологии\")","v":"Культура дома, дизайн и технологии"},"Моделирование и механическая обработка швейного изделия"]
[41,"Харисова","Нелли","Ильдаровна","Ж","нет","7б",7,19,60,"участник","нет ","Гаранина Елена Олеговна ","МБОУ \"Гимназия №32\"",{"$f":"IF(E42=\"М\",\"Техника, технология и техническое творчество\",\"Культура дома, дизайн и технологии\")","v":"Культура дома, дизайн и технологии"},"Моделирование и механическая обработка швейного изделия"]
[42,"Ахметзянова","Сафия","Рустемовна","Ж","нет","7в",7,10,60,"участник","нет ","Гаранина Елена Олеговна ","МБОУ \"Гимназия №32\"",{"$f":"IF(E43=\"М\",\"Техника, технология и техническое творчество\",\"Культура дома, дизайн и технологии\")","v":"Культура дома, дизайн и технологии"},"Моделирование и механическая обработка швейного изделия"]
[43,"Галимзанова ","Ралина","Айдаровна","Ж","нет","7в",7,12,60,"участник","нет ","Гаранина Елена Олеговна ","МБОУ \"Гимназия №32\"",{"$f":"IF(E44=\"М\",\"Техника, технология и техническое творчество\",\"Культура дома, дизайн и технологии\")","v":"Культура дома, дизайн и технологии"},"Моделирование и механическая обработка швейного изделия"]
[44,"Даутова","Азалия","Наилевна","Ж","нет","7в",7,11,60,"участник","нет ","Гаранина Елена Олеговна ","МБОУ \"Гимназия №32\"",{"$f":"IF(E45=\"М\",\"Техника, технология и техническое творчество\",\"Культура дома, дизайн и технологии\")","v":"Культура дома, дизайн и технологии"},"Моделирование и механическая обработка швейного изделия"]
[45,"Зайцева","Рамиля","Рафисовна","Ж","нет","7в",7,10,60,"участник","нет ","Гаранина Елена Олеговна ","МБОУ \"Гимназия №32\"",{"$f":"IF(E46=\"М\",\"Техника, технология и техническое творчество\",\"Культура дома, дизайн и технологии\")","v":"Культура дома, дизайн и технологии"},"Моделирование и механическая обработка швейного изделия"]
[46,"Зарипова ","Арина","Ильнаровна","Ж","нет","7в",7,12,60,"участник","нет ","Гаранина Елена Олеговна ","МБОУ \"Гимназия №32\"",{"$f":"IF(E47=\"М\",\"Техника, технология и техническое творчество\",\"Культура дома, дизайн и технологии\")","v":"Культура дома, дизайн и технологии"},"Моделирование и механическая обработка швейного изделия"]
[47,"Зиннурова ","Аделина","Айнуровна","Ж","нет","7в",7,13,60,"участник","нет ","Гаранина Елена Олеговна ","МБОУ \"Гимназия №32\"",{"$f":"IF(E48=\"М\",\"Техника, технология и техническое творчество\",\"Культура дома, дизайн и технологии\")","v":"Культура дома, дизайн и технологии"},"Моделирование и механическая обработка швейного изделия"]
[48,"Костина","Арина","Антоновна","Ж","нет","7в",7,13,60,"участник","нет ","Гаранина Елена Олеговна ","МБОУ \"Гимназия №32\"",{"$f":"IF(E49=\"М\",\"Техника, технология и техническое творчество\",\"Культура дома, дизайн и технологии\")","v":"Культура дома, дизайн и технологии"},"Моделирование и механическая обработка швейного изделия"]
[49,"Маслова","Алина","Николаевна","Ж","нет","7в",7,10,60,"участник","нет ","Гаранина Елена Олеговна ","МБОУ \"Гимназия №32\"",{"$f":"IF(E50=\"М\",\"Техника, технология и техническое творчество\",\"Культура дома, дизайн и технологии\")","v":"Культура дома, дизайн и технологии"},"Моделирование и механическая обработка швейного изделия"]
[50,"Мингазетдинова","Саида","Ирековна","Ж","нет","7в",7,10,60,"участник","нет ","Гаранина Елена Олеговна ","МБОУ \"Гимназия №32\"",{"$f":"IF(E51=\"М\",\"Техника, технология и техническое творчество\",\"Культура дома, дизайн и технологии\")","v":"Культура дома, дизайн и технологии"},"Моделирование и механическая обработка швейного изделия"]
[51,"Сабитова","Самира","Марселевна","Ж","нет","7в",7,7,60,"участник","нет ","Гаранина Елена Олеговна ","МБОУ \"Гимназия №32\"",{"$f":"IF(E52=\"М\",\"Техника, технология и техническое творчество\",\"Культура дома, дизайн и технологии\")","v":"Культура дома, дизайн и технологии"},"Моделирование и механическая обработка швейного изделия"]
[52,"Фазылова","Алина","Айратовна","Ж","нет","7в",7,10,60,"участник","нет ","Гаранина Елена Олеговна ","МБОУ \"Гимназия №32\"",{"$f":"IF(E53=\"М\",\"Техника, технология и техническое творчество\",\"Культура дома, дизайн и технологии\")","v":"Культура дома, дизайн и технологии"},"Моделирование и механическая обработка швейного изделия"]
[53,"Фасахутдинова","Самира","Айнуровна","Ж","нет","7в",7,22,60,"участник","нет ","Гаранина Елена Олеговна ","МБОУ \"Гимназия №32\"",{"$f":"IF(E54=\"М\",\"Техника, технология и техническое творчество\",\"Культура дома, дизайн и технологии\")","v":"Культура дома, дизайн и технологии"},"Моделирование и механическая обработка швейного изделия"]
[54,"Хасанова ","Лилия","Руслановна","Ж","нет","7в",7,10,60,"участник","нет ","Гаранина Елена Олеговна ","МБОУ \"Гимназия №32\"",{"$f":"IF(E55=\"М\",\"Техника, технология и техническое творчество\",\"Культура дома, дизайн и технологии\")","v":"Культура дома, дизайн и технологии"},"Моделирование и механическая обработка швейного изделия"]
[55,"Мартиросян","Марьям","Хореновна","Ж","нет","7г",7,10.5,60,"участник","нет ","Гаранина Елена Олеговна ","МБОУ \"Гимназия №32\"",{"$f":"IF(E56=\"М\",\"Техника, технология и техническое творчество\",\"Культура дома, дизайн и технологии\")","v":"Культура дома, дизайн и технологии"},{"$f":"IF(O56=\"Техника, технология и техническое творчество\",\"Ручная деревообработка\",\"Моделирование и механическая обработка швейного изделия\")","v":"Моделирование и механическая обработка швейного изделия"}]
[56,"Аникина","Арина","Александровна","Ж","нет","8а",8,11,60,"участник","нет ","Гаранина Елена Олеговна ","МБОУ \"Гимназия №32\"",{"$f":"IF(E57=\"М\",\"Техника, технология и техническое творчество\",\"Культура дома, дизайн и технологии\")","v":"Культура дома, дизайн и технологии"},"Моделирование и механическая обработка швейного изделия"]
[57,"Валиева","София","Рафаэлевна","Ж","нет","8а",8,15,60,"участник","нет ","Гаранина Елена Олеговна ","МБОУ \"Гимназия №32\"",{"$f":"IF(E58=\"М\",\"Техника, технология и техническое творчество\",\"Культура дома, дизайн и технологии\")","v":"Культура дома, дизайн и технологии"},"Моделирование и механическая обработка швейного изделия"]
[58,"Журавлева","Милана","Равилевна","Ж","нет","8а",8,17.5,60,"участник","нет ","Гаранина Елена Олеговна ","МБОУ \"Гимназия №32\"",{"$f":"IF(E59=\"М\",\"Техника, технология и техническое творчество\",\"Культура дома, дизайн и технологии\")","v":"Культура дома, дизайн и технологии"},"Моделирование и механическая обработка швейного изделия"]
[59,"Зайнуллина","Азалия","Ильшатовна","Ж","нет","8а",8,15,60,"участник","нет ","Гаранина Елена Олеговна ","МБОУ \"Гимназия №32\"",{"$f":"IF(E60=\"М\",\"Техника, технология и техническое творчество\",\"Культура дома, дизайн и технологии\")","v":"Культура дома, дизайн и технологии"},"Моделирование и механическая обработка швейного изделия"]
[60,"Куприна","Елизавета","Артёмовна","Ж","нет","8а",8,11,60,"участник","нет ","Гаранина Елена Олеговна ","МБОУ \"Гимназия №32\"",{"$f":"IF(E61=\"М\",\"Техника, технология и техническое творчество\",\"Культура дома, дизайн и технологии\")","v":"Культура дома, дизайн и технологии"},"Моделирование и механическая обработка швейного изделия"]
[61,"Полянская","София","Максимовна","Ж","нет","8а",8,16.5,60,"участник","нет ","Гаранина Елена Олеговна ","МБОУ \"Гимназия №32\"",{"$f":"IF(E62=\"М\",\"Техника, технология и техническое творчество\",\"Культура дома, дизайн и технологии\")","v":"Культура дома, дизайн и технологии"},"Моделирование и механическая обработка швейного изделия"]
[62,"Усатова","Анна","Алексеевна","Ж","нет","8а",8,14,60,"участник","нет ","Гаранина Елена Олеговна ","МБОУ \"Гимназия №32\"",{"$f":"IF(E63=\"М\",\"Техника, технология и техническое творчество\",\"Культура дома, дизайн и технологии\")","v":"Культура дома, дизайн и технологии"},"Моделирование и механическая обработка швейного изделия"]
[63,"Чурсина","Валерия","Сергеевна","Ж","нет","8а",8,17.5,60,"участник","нет ","Гаранина Елена Олеговна ","МБОУ \"Гимназия №32\"",{"$f":"IF(E64=\"М\",\"Техника, технология и техническое творчество\",\"Культура дома, дизайн и технологии\")","v":"Культура дома, дизайн и технологии"},"Моделирование и механическая обработка швейного изделия"]
[64,"Шайхутдинова","Айсылу","Табрисовна","Ж","нет","8а",8,16,60,"участник","нет ","Гаранина Елена Олеговна ","МБОУ \"Гимназия №32\"",{"$f":"IF(E65=\"М\",\"Техника, технология и техническое творчество\",\"Культура дома, дизайн и технологии\")","v":"Культура дома, дизайн и технологии"},"Моделирование и механическая обработка швейного изделия"]
[65,"Шарипова","Арина","Радиковна","Ж","нет","8а",8,12,60,"участник","нет ","Гаранина Елена Олеговна ","МБОУ \"Гимназия №32\"",{"$f":"IF(E66=\"М\",\"Техника, технология и техническое творчество\",\"Культура дома, дизайн и технологии\")","v":"Культура дома, дизайн и технологии"},"Моделирование и механическая обработка швейного изделия"]
[66,"Кузьмина","Камилла","Александровна","Ж","нет",8,8,3,60,"участник","нет ","Гаранина Елена Олеговна ","МБОУ \"Гимназия №32\"",{"$f":"IF(E67=\"М\",\"Техника, технология и техническое творчество\",\"Культура дома, дизайн и технологии\")","v":"Культура дома, дизайн и технологии"},{"$f":"IF(O67=\"Техника, технология и техническое творчество\",\"Ручная деревообработка\",\"Моделирование и механическая обработка швейного изделия\")","v":"Моделирование и механическая обработка швейного изделия"}]
[67,"Денисенко","Дарья","Семёновна","Ж","нет","8б",8,17,60,"участник","нет ","Гаранина Елена Олеговна ","МБОУ \"Гимназия №32\"",{"$f":"IF(E68=\"М\",\"Техника, технология и техническое творчество\",\"Культура дома, дизайн и технологии\")","v":"Культура дома, дизайн и технологии"},"Моделирование и механическая обработка швейного изделия"]
[68,"Зайнутдинова","Амалия","Нуримановна","Ж","нет","8б",8,16,60,"участник","нет ","Гаранина Елена Олеговна ","МБОУ \"Гимназия №32\"",{"$f":"IF(E69=\"М\",\"Техника, технология и техническое творчество\",\"Культура дома, дизайн и технологии\")","v":"Культура дома, дизайн и технологии"},"Моделирование и механическая обработка швейного изделия"]
[69,"Каржавкина ","Эмилия","Ильнуровна","Ж","нет","8б",8,1,60,"участник","нет ","Гаранина Елена Олеговна ","МБОУ \"Гимназия №32\"",{"$f":"IF(E70=\"М\",\"Техника, технология и техническое творчество\",\"Культура дома, дизайн и технологии\")","v":"Культура дома, дизайн и технологии"},"Моделирование и механическая обработка швейного изделия"]
[70,"Мерясева","Анастасия","Федоровна","Ж","нет","8б",8,13,60,"участник","нет ","Гаранина Елена Олеговна ","МБОУ \"Гимназия №32\"",{"$f":"IF(E71=\"М\",\"Техника, технология и техническое творчество\",\"Культура дома, дизайн и технологии\")","v":"Культура дома, дизайн и технологии"},"Моделирование и механическая обработка швейного изделия"]
[71,"Норкина","Вероника","Михайловна","Ж","нет","8б",8,12,60,"участник","нет ","Гаранина Елена Олеговна ","МБОУ \"Гимназия №32\"",{"$f":"IF(E72=\"М\",\"Техника, технология и техническое творчество\",\"Культура дома, дизайн и технологии\")","v":"Культура дома, дизайн и технологии"},"Моделирование и механическая обработка швейного изделия"]
[72,"Романова","Эвелина","Александровна","Ж","нет","8б",8,14,60,"участник","нет ","Гаранина Елена Олеговна ","МБОУ \"Гимназия №32\"",{"$f":"IF(E73=\"М\",\"Техника, технология и техническое творчество\",\"Культура дома, дизайн и технологии\")","v":"Культура дома, дизайн и технологии"},"Моделирование и механическая обработка швейного изделия"]
[73,"Сафиуллина","Марина","Тимуровна","Ж","нет","8б",8,14,60,"участник","нет ","Гаранина Елена Олеговна ","МБОУ \"Гимназия №32\"",{"$f":"IF(E74=\"М\",\"Техника, технология и техническое творчество\",\"Культура дома, дизайн и технологии\")","v":"Культура дома, дизайн и технологии"},"Моделирование и механическая обработка швейного изделия"]
[74,"Табакина","Софья","Викторовна","Ж","нет","8б",8,12,60,"участник","нет ","Гаранина Елена Олеговна ","МБОУ \"Гимназия №32\"",{"$f":"IF(E75=\"М\",\"Техника, технология и техническое творчество\",\"Культура дома, дизайн и технологии\")","v":"Культура дома, дизайн и технологии"},"Моделирование и механическая обработка швейного изделия"]
[75,"Ушенкина","Софья","Михайловна","Ж","нет","8б",8,12,60,"участник","нет ","Гаранина Елена Олеговна ","МБОУ \"Гимназия №32\"",{"$f":"IF(E76=\"М\",\"Техника, технология и техническое творчество\",\"Культура дома, дизайн и технологии\")","v":"Культура дома, дизайн и технологии"},"Моделирование и механическая обработка швейного изделия"]
[76,"Фасхутдинова","Риана","Тофиковна","Ж","нет","8б",8,11,60,"участник","нет ","Гаранина Елена Олеговна ","МБОУ \"Гимназия №32\"",{"$f":"IF(E77=\"М\",\"Техника, технология и техническое творчество\",\"Культура дома, дизайн и технологии\")","v":"Культура дома, дизайн и технологии"},"Моделирование и механическая обработка швейного изделия"]
[77,"Черноусова","Владислава","Игоревна","Ж","нет","8б",8,14,60,"участник","нет ","Гаранина Елена Олеговна ","МБОУ \"Гимназия №32\"",{"$f":"IF(E78=\"М\",\"Техника, технология и техническое творчество\",\"Культура дома, дизайн и технологии\")","v":"Культура дома, дизайн и технологии"},"Моделирование и механическая обработка швейного изделия"]
[78,"Шамсиева","Камиля","Лябибовна","Ж","нет","8б",9,18,60,"участник","нет ","Гаранина Елена Олеговна ","МБОУ \"Гимназия №32\"",{"$f":"IF(E79=\"М\",\"Техника, технология и техническое творчество\",\"Культура дома, дизайн и технологии\")","v":"Культура дома, дизайн и технологии"},"Моделирование и механическая обработка швейного изделия"]
[79,"Бикмурзина","Анна","Николаевна","Ж","нет","8г",9,11,60,"участник","нет ","Гаранина Елена Олеговна ","МБОУ \"Гимназия №32\"",{"$f":"IF(E80=\"М\",\"Техника, технология и техническое творчество\",\"Культура дома, дизайн и технологии\")","v":"Культура дома, дизайн и технологии"},"Моделирование и механическая обработка швейного изделия"]
[80,"Васильева","Виктория","Юрьевна","Ж","нет","8г",9,18,60,"участник","нет ","Гаранина Елена Олеговна ","МБОУ \"Гимназия №32\"",{"$f":"IF(E81=\"М\",\"Техника, технология и техническое творчество\",\"Культура дома, дизайн и технологии\")","v":"Культура дома, дизайн и технологии"},"Моделирование и механическая обработка швейного изделия"]
[81,"Галиханова","Дина","Фларитовна","Ж","нет","8г",9,15,60,"участник","нет ","Гаранина Елена Олеговна ","МБОУ \"Гимназия №32\"",{"$f":"IF(E82=\"М\",\"Техника, технология и техническое творчество\",\"Культура дома, дизайн и технологии\")","v":"Культура дома, дизайн и технологии"},"Моделирование и механическая обработка швейного изделия"]
[82,"Гатауллина","Сабина","Ленаровна","Ж","нет","8г",9,8,60,"участник","нет ","Гаранина Елена Олеговна ","МБОУ \"Гимназия №32\"",{"$f":"IF(E83=\"М\",\"Техника, технология и техническое творчество\",\"Культура дома, дизайн и технологии\")","v":"Культура дома, дизайн и технологии"},{"$f":"IF(O83=\"Техника, технология и техническое творчество\",\"Ручная деревообработка\",\"Моделирование и механическая обработка швейного изделия\")","v":"Моделирование и механическая обработка швейного изделия"}]
[83,"Гильванова","Анна","Артуровна","Ж","нет","8г",8,12,60,"участник","нет ","Гаранина Елена Олеговна ","МБОУ \"Гимназия №32\"",{"$f":"IF(E84=\"М\",\"Техника, технология и техническое творчество\",\"Культура дома, дизайн и технологии\")","v":"Культура дома, дизайн и технологии"},"Моделирование и механическая обработка швейного изделия"]
[84,"Гильмутдинова","Азиза","Ильдаровна","Ж","нет","8г",9,1,60,"участник","нет ","Гаранина Елена Олеговна ","МБОУ \"Гимназия №32\"",{"$f":"IF(E85=\"М\",\"Техника, технология и техническое творчество\",\"Культура дома, дизайн и технологии\")","v":"Культура дома, дизайн и технологии"},"Моделирование и механическая обработка швейного изделия"]
[85,"Захарова","Вероника","Евгеньевна","Ж","нет","8г",9,10,60,"участник","нет ","Гаранина Елена Олеговна ","МБОУ \"Гимназия №32\"",{"$f":"IF(E86=\"М\",\"Техника, технология и техническое творчество\",\"Культура дома, дизайн и технологии\")","v":"Культура дома, дизайн и технологии"},"Моделирование и механическая обработка швейного изделия"]
[86,"Знудова","Мария","Александровна","Ж","нет","8г",8,5,60,"участник","нет ","Гаранина Елена Олеговна ","МБОУ \"Гимназия №32\"",{"$f":"IF(E87=\"М\",\"Техника, технология и техническое творчество\",\"Культура дома, дизайн и технологии\")","v":"Культура дома, дизайн и технологии"},"Моделирование и механическая обработка швейного изделия"]
[87,"Исаева","Даная","Игоревна","Ж","нет","8г",9,4,60,"участник","нет ","Гаранина Елена Олеговна ","МБОУ \"Гимназия №32\"",{"$f":"IF(E88=\"М\",\"Техника, технология и техническое творчество\",\"Культура дома, дизайн и технологии\")","v":"Культура дома, дизайн и технологии"},"Моделирование и механическая обработка швейного изделия"]
[88,"Омельченко","Ксения","Сергеевна","Ж","нет","8г",9,52,60,"победитель","да","Гаранина Елена Олеговна ","МБОУ \"Гимназия №32\"",{"$f":"IF(E89=\"М\",\"Техника, технология и техническое творчество\",\"Культура дома, дизайн и технологии\")","v":"Культура дома, дизайн и технологии"},"Моделирование и механическая обработка швейного изделия"]
[89,"Панфилова","Софья","Алексеевна","Ж","нет","8г",8,9,60,"участник","нет ","Гаранина Елена Олеговна ","МБОУ \"Гимназия №32\"",{"$f":"IF(E90=\"М\",\"Техника, технология и техническое творчество\",\"Культура дома, дизайн и технологии\")","v":"Культура дома, дизайн и технологии"},"Моделирование и механическая обработка швейного изделия"]
[90,"Пузикова","Анастасия","Николаевна","Ж","нет","8г",9,10,60,"участник","нет ","Гаранина Елена Олеговна ","МБОУ \"Гимназия №32\"",{"$f":"IF(E91=\"М\",\"Техника, технология и техническое творчество\",\"Культура дома, дизайн и технологии\")","v":"Культура дома, дизайн и технологии"},"Моделирование и механическая обработка швейного изделия"]
[91,"Ситдикова","Сальвина","Ленаровна","Ж","нет","8г",8,7,60,"участник","нет ","Гаранина Елена Олеговна ","МБОУ \"Гимназия №32\"",{"$f":"IF(E92=\"М\",\"Техника, технология и техническое творчество\",\"Культура дома, дизайн и технологии\")","v":"Культура дома, дизайн и технологии"},"Моделирование и механическая обработка швейного изделия"]
[92,"Файзрахманова","Самира","Дамировна","Ж","нет","8г",8,15,60,"участник","нет ","Гаранина Елена Олеговна ","МБОУ \"Гимназия №32\"",{"$f":"IF(E93=\"М\",\"Техника, технология и техническое творчество\",\"Культура дома, дизайн и технологии\")","v":"Культура дома, дизайн и технологии"},"Моделирование и механическая обработка швейного изделия"]
[93,"Чазова","Дарья","Алексеевна","Ж","нет","8г",9,13,60,"участник","нет ","Гаранина Елена Олеговна ","МБОУ \"Гимназия №32\"",{"$f":"IF(E94=\"М\",\"Техника, технология и техническое творчество\",\"Культура дома, дизайн и технологии\")","v":"Культура дома, дизайн и технологии"},"Моделирование и механическая обработка швейного изделия"]
[94,"Шеленина","Вероника","Алексеевна","Ж","нет","8г",8,32,60,"участник","нет ","Гаранина Елена Олеговна ","МБОУ \"Гимназия №32\"",{"$f":"IF(E95=\"М\",\"Техника, технология и техническое творчество\",\"Культура дома, дизайн и технологии\")","v":"Культура дома, дизайн и технологии"},"Моделирование и механическая обработка швейного изделия"]
[95,"Блохина","Татьяна","Александровна","Ж","нет","8д",9,2,60,"участник","нет ","Гаранина Елена Олеговна ","МБОУ \"Гимназия №32\"",{"$f":"IF(E96=\"М\",\"Техника, технология и техническое творчество\",\"Культура дома, дизайн и технологии\")","v":"Культура дома, дизайн и технологии"},"Моделирование и механическая обработка швейного изделия"]
[96,"Габдуллина","Лилия","Фердинандовна","Ж","нет","8д",9,8,60,"участник","нет ","Гаранина Елена Олеговна ","МБОУ \"Гимназия №32\"",{"$f":"IF(E97=\"М\",\"Техника, технология и техническое творчество\",\"Культура дома, дизайн и технологии\")","v":"Культура дома, дизайн и технологии"},"Моделирование и механическая обработка швейного изделия"]
[97,"Зуева","Арина","Вячеславовна","Ж","нет","10 б",10,12,60,"участник","нет ","Гаранина Елена Олеговна ","МБОУ \"Гимназия №32\"",{"$f":"IF(E98=\"М\",\"Техника, технология и техническое творчество\",\"Культура дома, дизайн и технологии\")","v":"Культура дома, дизайн и технологии"},"Моделирование и механическая обработка швейного изделия"]
[98,"Латыпова","Арина","Аликовна","Ж","нет","10 б",10,10,60,"участник","нет ","Гаранина Елена Олеговна ","МБОУ \"Гимназия №32\"",{"$f":"IF(E99=\"М\",\"Техника, технология и техническое творчество\",\"Культура дома, дизайн и технологии\")","v":"Культура дома, дизайн и технологии"},"Моделирование и механическая обработка швейного изделия"]
[99,"Пузырева","Валерия","Евгеньевна","Ж","нет","10а",10,12,60,"участник","нет ","Гаранина Елена Олеговна ","МБОУ \"Гимназия №32\"",{"$f":"IF(E100=\"М\",\"Техника, технология и техническое творчество\",\"Культура дома, дизайн и технологии\")","v":"Культура дома, дизайн и технологии"},"Моделирование и механическая обработка швейного изделия"]
[100,"Хайбуллова","Диляра","Рушановна","Ж","нет","10а",10,12,60,"участник","нет ","Гаранина Елена Олеговна ","МБОУ \"Гимназия №32\"",{"$f":"IF(E101=\"М\",\"Техника, технология и техническое творчество\",\"Культура дома, дизайн и технологии\")","v":"Культура дома, дизайн и технологии"},"Моделирование и механическая обработка швейного изделия"]
[101,"Андреева ","Ксения","Игоревна","Ж","нет","10а",10,12,60,"участник","нет ","Гаранина Елена Олеговна ","МБОУ \"Гимназия №32\"",{"$f":"IF(E102=\"М\",\"Техника, технология и техническое творчество\",\"Культура дома, дизайн и технологии\")","v":"Культура дома, дизайн и технологии"},{"$f":"IF(O102=\"Техника, технология и техническое творчество\",\"Ручная деревообработка\",\"Моделирование и механическая обработка швейного изделия\")","v":"Моделирование и механическая обработка швейного изделия"}]
[102,"Ахметзянова","Эльвина","Эдуардовна","Ж","нет","10а",10,11,60,"участник","нет ","Гаранина Елена Олеговна ","МБОУ \"Гимназия №32\"",{"$f":"IF(E103=\"М\",\"Техника, технология и техническое творчество\",\"Культура дома, дизайн и технологии\")","v":"Культура дома, дизайн и технологии"},"Моделирование и механическая обработка швейного изделия"]
[103,"Зиганшина","Лейсан","Ниязовна","Ж","нет","10а",10,12,60,"участник","нет ","Гаранина Елена Олеговна ","МБОУ \"Гимназия №32\"",{"$f":"IF(E104=\"М\",\"Техника, технология и техническое творчество\",\"Культура дома, дизайн и технологии\")","v":"Культура дома, дизайн и технологии"},"Моделирование и механическая обработка швейного изделия"]
[104,"Ишманова","Индира","Ильнаровна","Ж","нет","10а",10,14,60,"участник","нет ","Гаранина Елена Олеговна ","МБОУ \"Гимназия №32\"",{"$f":"IF(E105=\"М\",\"Техника, технология и техническое творчество\",\"Культура дома, дизайн и технологии\")","v":"Культура дома, дизайн и технологии"},"Моделирование и механическая обработка швейного изделия"]
[105,"Кагарманова","Ульяна","Вадимовна","Ж","нет","10а",10,11,60,"участник","нет ","Гаранина Елена Олеговна ","МБОУ \"Гимназия №32\"",{"$f":"IF(E106=\"М\",\"Техника, технология и техническое творчество\",\"Культура дома, дизайн и технологии\")","v":"Культура дома, дизайн и технологии"},"Моделирование и механическая обработка швейного изделия"]
[106,"Калимуллина","Динара","Айратовна","Ж","нет","10а",10,12,60,"участник","нет ","Гаранина Елена Олеговна ","МБОУ \"Гимназия №32\"",{"$f":"IF(E107=\"М\",\"Техника, технология и техническое творчество\",\"Культура дома, дизайн и технологии\")","v":"Культура дома, дизайн и технологии"},"Моделирование и механическая обработка швейного изделия"]
[107,"Корчагина ","Ксения","Александровна","Ж","нет","10а",10,12,60,"участник","нет ","Гаранина Елена Олеговна ","МБОУ \"Гимназия №32\"",{"$f":"IF(E108=\"М\",\"Техника, технология и техническое творчество\",\"Культура дома, дизайн и технологии\")","v":"Культура дома, дизайн и технологии"},"Моделирование и механическая обработка швейного изделия"]
[108,"Косых ","Дарина","Евгеньевна","Ж","нет","10а",10,11,60,"участник","нет ","Гаранина Елена Олеговна ","МБОУ \"Гимназия №32\"",{"$f":"IF(E109=\"М\",\"Техника, технология и техническое творчество\",\"Культура дома, дизайн и технологии\")","v":"Культура дома, дизайн и технологии"},"Моделирование и механическая обработка швейного изделия"]
[109,"Матвиенко","Арьяна","Александровна","Ж","нет","10а",10,11,60,"участник","нет ","Гаранина Елена Олеговна ","МБОУ \"Гимназия №32\"",{"$f":"IF(E110=\"М\",\"Техника, технология и техническое творчество\",\"Культура дома, дизайн и технологии\")","v":"Культура дома, дизайн и технологии"},"Моделирование и механическая обработка швейного изделия"]
[110,"Позднякова","Елена","Александровна","Ж","нет","10а",10,12,60,"участник","нет ","Гаранина Елена Олеговна ","МБОУ \"Гимназия №32\"",{"$f":"IF(E111=\"М\",\"Техника, технология и техническое творчество\",\"Культура дома, дизайн и технологии\")","v":"Культура дома, дизайн и технологии"},"Моделирование и механическая обработка швейного изделия"]
[111,"Позднякова","Елизавета","Васильевна","Ж","нет","10а",10,11,60,"участник","нет ","Гаранина Елена Олеговна ","МБОУ \"Гимназия №32\"",{"$f":"IF(E112=\"М\",\"Техника, технология и техническое творчество\",\"Культура дома, дизайн и технологии\")","v":"Культура дома, дизайн и технологии"},"Моделирование и механическая обработка швейного изделия"]
[112,"Прилепская","Валерия","Вячеславовна","Ж","нет","10а",10,11,60,"участник","нет ","Гаранина Елена Олеговна ","МБОУ \"Гимназия №32\"",{"$f":"IF(E113=\"М\",\"Техника, технология и техническое творчество\",\"Культура дома, дизайн и технологии\")","v":"Культура дома, дизайн и технологии"},"Моделирование и механическая обработка швейного изделия"]
[113,"Рябова","Анастасия","Витальевна","Ж","нет","10а",10,56,60,"участник","нет ","Гаранина Елена Олеговна ","МБОУ \"Гимназия №32\"",{"$f":"IF(E114=\"М\",\"Техника, технология и техническое творчество\",\"Культура дома, дизайн и технологии\")","v":"Культура дома, дизайн и технологии"},"Моделирование и механическая обработка швейного изделия"]
[114,"Соснова","Виолетта","Михайловна","Ж","нет","10а",10,12,60,"участник","нет ","Гаранина Елена Олеговна ","МБОУ \"Гимназия №32\"",{"$f":"IF(E115=\"М\",\"Техника, технология и техническое творчество\",\"Культура дома, дизайн и технологии\")","v":"Культура дома, дизайн и технологии"},"Моделирование и механическая обработка швейного изделия"]
[115,"Фассахутдинова","Лэйла","Ленаровна","Ж","нет","10а",10,53,60,"победитель","да","Гаранина Елена Олеговна ","МБОУ \"Гимназия №32\"",{"$f":"IF(E116=\"М\",\"Техника, технология и техническое творчество\",\"Культура дома, дизайн и технологии\")","v":"Культура дома, дизайн и технологии"},"Моделирование и механическая обработка швейного изделия"]
[116,"Хасанова","Самира","Руслановна","Ж","нет","10а",10,11,60,"участник","нет ","Гаранина Елена Олеговна ","МБОУ \"Гимназия №32\"",{"$f":"IF(E117=\"М\",\"Техника, технология и техническое творчество\",\"Культура дома, дизайн и технологии\")","v":"Культура дома, дизайн и технологии"},"Моделирование и механическая обработка швейного изделия"]
[117,"Найденко","Татьяна","Викторовна","Ж","нет","10б",10,11,60,"участник","нет ","Гаранина Елена Олеговна ","МБОУ \"Гимназия №32\"",{"$f":"IF(E118=\"М\",\"Техника, технология и техническое творчество\",\"Культура дома, дизайн и технологии\")","v":"Культура дома, дизайн и технологии"},"Моделирование и механическая обработка швейного изделия"]
[118,"Шарапова","Жасмин","Руслановна","Ж","нет","10б",10,10,60,"участник","нет ","Гаранина Елена Олеговна ","МБОУ \"Гимназия №32\"",{"$f":"IF(E119=\"М\",\"Техника, технология и техническое творчество\",\"Культура дома, дизайн и технологии\")","v":"Культура дома, дизайн и технологии"},"Моделирование и механическая обработка швейного изделия"]
[119,"Анисимова","Екатерина","Константиновна","Ж","нет","10б",10,10,60,"участник","нет ","Гаранина Елена Олеговна ","МБОУ \"Гимназия №32\"",{"$f":"IF(E120=\"М\",\"Техника, технология и техническое творчество\",\"Культура дома, дизайн и технологии\")","v":"Культура дома, дизайн и технологии"},"Моделирование и механическая обработка швейного изделия"]
[120,"Артемьева","Арина","Викторовна","Ж","нет","10б",10,52,60,"призер","да","Гаранина Елена Олеговна ","МБОУ \"Гимназия №32\"",{"$f":"IF(E121=\"М\",\"Техника, технология и техническое творчество\",\"Культура дома, дизайн и технологии\")","v":"Культура дома, дизайн и технологии"},"Моделирование и механическая обработка швейного изделия"]
[121,"Мингазеева","Сафина","Рамилевна","Ж","нет","10б",10,11,60,"участник","нет ","Гаранина Елена Олеговна ","МБОУ \"Гимназия №32\"",{"$f":"IF(E122=\"М\",\"Техника, технология и техническое творчество\",\"Культура дома, дизайн и технологии\")","v":"Культура дома, дизайн и технологии"},"Моделирование и механическая обработка швейного изделия"]
[122,"Минегареева","Лия","Динаровна","Ж","нет","10б",10,13,60,"участник","нет ","Гаранина Елена Олеговна ","МБОУ \"Гимназия №32\"",{"$f":"IF(E123=\"М\",\"Техника, технология и техническое творчество\",\"Культура дома, дизайн и технологии\")","v":"Культура дома, дизайн и технологии"},"Моделирование и механическая обработка швейного изделия"]
[123,"Юнусова","Самира","Загитовна","Ж","нет","10б",10,50,60,"призер","да","Гаранина Елена Олеговна ","МБОУ \"Гимназия №32\"",{"$f":"IF(E124=\"М\",\"Техника, технология и техническое творчество\",\"Культура дома, дизайн и технологии\")","v":"Культура дома, дизайн и технологии"},"Моделирование и механическая обработка швейного изделия"]
[124,"Рамазанова","Ралина","Айдаровна","Ж","нет","11а",11,8,60,"участник","нет ","Гаранина Елена Олеговна ","МБОУ \"Гимназия №32\"",{"$f":"IF(E125=\"М\",\"Техника, технология и техническое творчество\",\"Культура дома, дизайн и технологии\")","v":"Культура дома, дизайн и технологии"},"Моделирование и механическая обработка швейного изделия"]
[125,"Латыпова","Самира","Фирдаусовна","Ж","нет","11а",11,7,60,"участник","нет ","Гаранина Елена Олеговна ","МБОУ \"Гимназия №32\"",{"$f":"IF(E126=\"М\",\"Техника, технология и техническое творчество\",\"Культура дома, дизайн и технологии\")","v":"Культура дома, дизайн и технологии"},"Моделирование и механическая обработка швейного изделия"]
[126,"Асылова","Карина","Гелюсовна","Ж","нет","11а",11,3,60,"участник","нет ","Гаранина Елена Олеговна ","МБОУ \"Гимназия №32\"",{"$f":"IF(E127=\"М\",\"Техника, технология и техническое творчество\",\"Культура дома, дизайн и технологии\")","v":"Культура дома, дизайн и технологии"},"Моделирование и механическая обработка швейного изделия"]
[127,"Байрашева","Каролина","Артуровна","Ж","нет","11а",11,15,60,"участник","нет ","Гаранина Елена Олеговна ","МБОУ \"Гимназия №32\"",{"$f":"IF(E128=\"М\",\"Техника, технология и техническое творчество\",\"Культура дома, дизайн и технологии\")","v":"Культура дома, дизайн и технологии"},"Моделирование и механическая обработка швейного изделия"]
[128,"Гарифуллина","Рушания","Раисовна","Ж","нет","11а",11,10,60,"участник","нет ","Гаранина Елена Олеговна ","МБОУ \"Гимназия №32\"",{"$f":"IF(E129=\"М\",\"Техника, технология и техническое творчество\",\"Культура дома, дизайн и технологии\")","v":"Культура дома, дизайн и технологии"},"Моделирование и механическая обработка швейного изделия"]
[129,"Гатина","Рената","Азатовна","Ж","нет","11а",11,3,60,"участник","нет ","Гаранина Елена Олеговна ","МБОУ \"Гимназия №32\"",{"$f":"IF(E130=\"М\",\"Техника, технология и техническое творчество\",\"Культура дома, дизайн и технологии\")","v":"Культура дома, дизайн и технологии"},"Моделирование и механическая обработка швейного изделия"]
[130,"Гребенева","Алина","Сергеевна","Ж","нет","11а",11,9,60,"участник","нет ","Гаранина Елена Олеговна ","МБОУ \"Гимназия №32\"",{"$f":"IF(E131=\"М\",\"Техника, технология и техническое творчество\",\"Культура дома, дизайн и технологии\")","v":"Культура дома, дизайн и технологии"},"Моделирование и механическая обработка швейного изделия"]
[131,"Гришина","Анастасия","Кирилловна","Ж","нет","11а",11,52,60,"победитель","да","Гаранина Елена Олеговна ","МБОУ \"Гимназия №32\"",{"$f":"IF(E132=\"М\",\"Техника, технология и техническое творчество\",\"Культура дома, дизайн и технологии\")","v":"Культура дома, дизайн и технологии"},"Моделирование и механическая обработка швейного изделия"]
[132,"Гурышева","Аделина","Андреевна","Ж","нет","11а",11,13,60,"участник","нет ","Гаранина Елена Олеговна ","МБОУ \"Гимназия №32\"",{"$f":"IF(E133=\"М\",\"Техника, технология и техническое творчество\",\"Культура дома, дизайн и технологии\")","v":"Культура дома, дизайн и технологии"},"Моделирование и механическая обработка швейного изделия"]
[133,"Дюжина","Софья","Алексеевна","Ж","нет","11а",11,10,60,"участник","нет ","Гаранина Елена Олеговна ","МБОУ \"Гимназия №32\"",{"$f":"IF(E134=\"М\",\"Техника, технология и техническое творчество\",\"Культура дома, дизайн и технологии\")","v":"Культура дома, дизайн и технологии"},"Моделирование и механическая обработка швейного изделия"]
[134,"Зиннурова","Лилия","Рустемовна","Ж","нет","11а",11,12,60,"участник","нет ","Гаранина Елена Олеговна ","МБОУ \"Гимназия №32\"",{"$f":"IF(E135=\"М\",\"Техника, технология и техническое творчество\",\"Культура дома, дизайн и технологии\")","v":"Культура дома, дизайн и технологии"},"Моделирование и механическая обработка швейного изделия"]
[135,"Казакова","Анастасия","Евгеньевна","Ж","нет","11а",11,14,60,"участник","нет ","Гаранина Елена Олеговна ","МБОУ \"Гимназия №32\"",{"$f":"IF(E136=\"М\",\"Техника, технология и техническое творчество\",\"Культура дома, дизайн и технологии\")","v":"Культура дома, дизайн и технологии"},"Моделирование и механическая обработка швейного изделия"]
[136,"Камалова","Ралина","Рустемовна","Ж","нет","11а",11,11,60,"участник","нет ","Гаранина Елена Олеговна ","МБОУ \"Гимназия №32\"",{"$f":"IF(E137=\"М\",\"Техника, технология и техническое творчество\",\"Культура дома, дизайн и технологии\")","v":"Культура дома, дизайн и технологии"},"Моделирование и механическая обработка швейного изделия"]
[137,"Мавлиева","Диля","Анисовна","Ж","нет","11а",11,10,60,"участник","нет ","Гаранина Елена Олеговна ","МБОУ \"Гимназия №32\"",{"$f":"IF(E138=\"М\",\"Техника, технология и техническое творчество\",\"Культура дома, дизайн и технологии\")","v":"Культура дома, дизайн и технологии"},"Моделирование и механическая обработка швейного изделия"]
[138,"Маркова","Анастасия","Александровна","Ж","нет","11а",11,8,60,"участник","нет ","Гаранина Елена Олеговна ","МБОУ \"Гимназия №32\"",{"$f":"IF(E139=\"М\",\"Техника, технология и техническое творчество\",\"Культура дома, дизайн и технологии\")","v":"Культура дома, дизайн и технологии"},"Моделирование и механическая обработка швейного изделия"]
[139,"Нигметзянова","Камила","Рамилевна","Ж","нет","11а",11,13,60,"участник","нет ","Гаранина Елена Олеговна ","МБОУ \"Гимназия №32\"",{"$f":"IF(E140=\"М\",\"Техника, технология и техническое творчество\",\"Культура дома, дизайн и технологии\")","v":"Культура дома, дизайн и технологии"},"Моделирование и механическая обработка швейного изделия"]
[140,"Нурмиева","Рината","Рустамовна","Ж","нет","11а",11,12,60,"участник","нет ","Гаранина Елена Олеговна ","МБОУ \"Гимназия №32\"",{"$f":"IF(E141=\"М\",\"Техника, технология и техническое творчество\",\"Культура дома, дизайн и технологии\")","v":"Культура дома, дизайн и технологии"},"Моделирование и механическая обработка швейного изделия"]
[141,"Сагдеева","Ляйсан","Алмазовна","Ж","нет","11а",11,12,60,"участник","нет ","Гаранина Елена Олеговна ","МБОУ \"Гимназия №32\"",{"$f":"IF(E142=\"М\",\"Техника, технология и техническое творчество\",\"Культура дома, дизайн и технологии\")","v":"Культура дома, дизайн и технологии"},"Моделирование и механическая обработка швейного изделия"]
[142,"Ситникова","Арина","Денисовна","Ж","нет","11а",11,11,60,"участник","нет ","Гаранина Елена Олеговна ","МБОУ \"Гимназия №32\"",{"$f":"IF(E143=\"М\",\"Техника, технология и техническое творчество\",\"Культура дома, дизайн и технологии\")","v":"Культура дома, дизайн и технологии"},"Моделирование и механическая обработка швейного изделия"]
[143,"Тимеркаева","Самира","Ильдаровна","Ж","нет","11а",11,10,60,"участник","нет ","Гаранина Елена Олеговна ","МБОУ \"Гимназия №32\"",{"$f":"IF(E144=\"М\",\"Техника, технология и техническое творчество\",\"Культура дома, дизайн и технологии\")","v":"Культура дома, дизайн и технологии"},"Моделирование и механическая обработка швейного изделия"]
[144,"Фаттахова","Ильзира","Ильгизовна","Ж","нет","11а",11,14,60,"участник","нет ","Гаранина Елена Олеговна ","МБОУ \"Гимназия №32\"",{"$f":"IF(E145=\"М\",\"Техника, технология и техническое творчество\",\"Культура дома, дизайн и технологии\")","v":"Культура дома, дизайн и технологии"},"Моделирование и механическая обработка швейного изделия"]
[145,"Ходалова","Вероника","Андреевна","Ж","нет","11б",11,11,60,"участник","нет ","Гаранина Елена Олеговна ","МБОУ \"Гимназия №32\"",{"$f":"IF(E146=\"М\",\"Техника, технология и техническое творчество\",\"Культура дома, дизайн и технологии\")","v":"Культура дома, дизайн и технологии"},"Моделирование и механическая обработка швейного изделия"]
[146,"Шагитова","Адиля","Радиковна","Ж","нет","11б",11,12,60,"участник","нет ","Гаранина Елена Олеговна ","МБОУ \"Гимназия №32\"",{"$f":"IF(E147=\"М\",\"Техника, технология и техническое творчество\",\"Культура дома, дизайн и технологии\")","v":"Культура дома, дизайн и технологии"},"Моделирование и механическая обработка швейного изделия"]
[147,"Жеглова","Анастасия","Станиславовна","Ж","нет","11б",11,12,60,"участник","нет ","Гаранина Елена Олеговна ","МБОУ \"Гимназия №32\"",{"$f":"IF(E148=\"М\",\"Техника, технология и техническое творчество\",\"Культура дома, дизайн и технологии\")","v":"Культура дома, дизайн и технологии"},{"$f":"IF(O148=\"Техника, технология и техническое творчество\",\"Ручная деревообработка\",\"Моделирование и механическая обработка швейного изделия\")","v":"Моделирование и механическая обработка швейного изделия"}]
[148,"Зарубина","Елизавета","Дмитриевна","Ж","нет","11б",11,13,60,"участник","нет ","Гаранина Елена Олеговна ","МБОУ \"Гимназия №32\"",{"$f":"IF(E149=\"М\",\"Техника, технология и техническое творчество\",\"Культура дома, дизайн и технологии\")","v":"Культура дома, дизайн и технологии"},"Моделирование и механическая обработка швейного изделия"]
[149,"Захарова ","Виолетта","Витальевна","Ж","нет","11б",11,10,60,"участник","нет ","Гаранина Елена Олеговна ","МБОУ \"Гимназия №32\"",{"$f":"IF(E150=\"М\",\"Техника, технология и техническое творчество\",\"Культура дома, дизайн и технологии\")","v":"Культура дома, дизайн и технологии"},"Моделирование и механическая обработка швейного изделия"]
[150,"Зубайрова","Алина","Ришатовна","Ж","нет","11б",11,9,60,"участник","нет ","Гаранина Елена Олеговна ","МБОУ \"Гимназия №32\"",{"$f":"IF(E151=\"М\",\"Техника, технология и техническое творчество\",\"Культура дома, дизайн и технологии\")","v":"Культура дома, дизайн и технологии"},"Моделирование и механическая обработка швейного изделия"]
[151,"Истифина","Софья","Михайловна","Ж","нет","11б",11,11,60,"участник","нет ","Гаранина Елена Олеговна ","МБОУ \"Гимназия №32\"",{"$f":"IF(E152=\"М\",\"Техника, технология и техническое творчество\",\"Культура дома, дизайн и технологии\")","v":"Культура дома, дизайн и технологии"},"Моделирование и механическая обработка швейного изделия"]
[152,"Комиссарова","Ольга","Игоревна","Ж","нет","11б",11,13,60,"участник","нет ","Гаранина Елена Олеговна ","МБОУ \"Гимназия №32\"",{"$f":"IF(E153=\"М\",\"Техника, технология и техническое творчество\",\"Культура дома, дизайн и технологии\")","v":"Культура дома, дизайн и технологии"},"Моделирование и механическая обработка швейного изделия"]
[153,"Кузьмина","Виктория","Андреевна","Ж","нет","11б",11,14,60,"участник","нет ","Гаранина Елена Олеговна ","МБОУ \"Гимназия №32\"",{"$f":"IF(E154=\"М\",\"Техника, технология и техническое творчество\",\"Культура дома, дизайн и технологии\")","v":"Культура дома, дизайн и технологии"},"Моделирование и механическая обработка швейного изделия"]
[154,"Лызлова","Дарина","Сергеевна","Ж","нет","11б",11,12,60,"участник","нет ","Гаранина Елена Олеговна ","МБОУ \"Гимназия №32\"",{"$f":"IF(E155=\"М\",\"Техника, технология и техническое творчество\",\"Культура дома, дизайн и технологии\")","v":"Культура дома, дизайн и технологии"},"Моделирование и механическая обработка швейного изделия"]
[155,"Мавликова","Самира","Руслановна","Ж","нет","11б",11,10,60,"участник","нет ","Гаранина Елена Олеговна ","МБОУ \"Гимназия №32\"",{"$f":"IF(E156=\"М\",\"Техника, технология и техническое творчество\",\"Культура дома, дизайн и технологии\")","v":"Культура дома, дизайн и технологии"},"Моделирование и механическая обработка швейного изделия"]
[156,"Муллина","Азалия","Ильдаровна","Ж","нет","11б",11,9,60,"участник","нет ","Гаранина Елена Олеговна ","МБОУ \"Гимназия №32\"",{"$f":"IF(E157=\"М\",\"Техника, технология и техническое творчество\",\"Культура дома, дизайн и технологии\")","v":"Культура дома, дизайн и технологии"},"Моделирование и механическая обработка швейного изделия"]
[157,"Муртазина","Камилла","Альбертовна","Ж","нет","11б",11,12,60,"участник","нет ","Гаранина Елена Олеговна ","МБОУ \"Гимназия №32\"",{"$f":"IF(E158=\"М\",\"Техника, технология и техническое творчество\",\"Культура дома, дизайн и технологии\")","v":"Культура дома, дизайн и технологии"},"Моделирование и механическая обработка швейного изделия"]
[158,"Нугуманова","Камиля","Динаровна","Ж","нет","11б",11,11,60,"участник","нет ","Гаранина Елена Олеговна ","МБОУ \"Гимназия №32\"",{"$f":"IF(E159=\"М\",\"Техника, технология и техническое творчество\",\"Культура дома, дизайн и технологии\")","v":"Культура дома, дизайн и технологии"},"Моделирование и механическая обработка швейного изделия"]
[159,"Палванова","Амира","Арслановна","Ж","нет","11б",11,11,60,"участник","нет ","Гаранина Елена Олеговна ","МБОУ \"Гимназия №32\"",{"$f":"IF(E160=\"М\",\"Техника, технология и техническое творчество\",\"Культура дома, дизайн и технологии\")","v":"Культура дома, дизайн и технологии"},"Моделирование и механическая обработка швейного изделия"]
[160,"Патрушева ","Софья","Александровна","Ж","нет","11б",11,10,60,"участник","нет ","Гаранина Елена Олеговна ","МБОУ \"Гимназия №32\"",{"$f":"IF(E161=\"М\",\"Техника, технология и техническое творчество\",\"Культура дома, дизайн и технологии\")","v":"Культура дома, дизайн и технологии"},"Моделирование и механическая обработка швейного изделия"]
[161,"Пименова","Вероника","Сергеевна","Ж","нет","11б",11,14,60,"участник","нет ","Гаранина Елена Олеговна ","МБОУ \"Гимназия №32\"",{"$f":"IF(E162=\"М\",\"Техника, технология и техническое творчество\",\"Культура дома, дизайн и технологии\")","v":"Культура дома, дизайн и технологии"},"Моделирование и механическая обработка швейного изделия"]
[162,"Разетдинова ","Рузиля","Руслановна","Ж","нет","11б",11,7,60,"участник","нет ","Гаранина Елена Олеговна ","МБОУ \"Гимназия №32\"",{"$f":"IF(E163=\"М\",\"Техника, технология и техническое творчество\",\"Культура дома, дизайн и технологии\")","v":"Культура дома, дизайн и технологии"},"Моделирование и механическая обработка швейного изделия"]
[163,"Сабирова","Азалия","Альфисовна","Ж","нет","11б",11,9,60,"участник","нет ","Гаранина Елена Олеговна ","МБОУ \"Гимназия №32\"",{"$f":"IF(E164=\"М\",\"Техника, технология и техническое творчество\",\"Культура дома, дизайн и технологии\")","v":"Культура дома, дизайн и технологии"},"Моделирование и механическая обработка швейного изделия"]
[164,"Умарова","Сабина","Дамировна","Ж","нет","11б",11,16,60,"участник","нет ","Гаранина Елена Олеговна ","МБОУ \"Гимназия №32\"",{"$f":"IF(E165=\"М\",\"Техника, технология и техническое творчество\",\"Культура дома, дизайн и технологии\")","v":"Культура дома, дизайн и технологии"},"Моделирование и механическая обработка швейного изделия"]
[165,"Яковлева","Лиана","Алексеевна","Ж","нет","11б",11,5,60,"участник","нет ","Гаранина Елена Олеговна ","МБОУ \"Гимназия №32\"",{"$f":"IF(E166=\"М\",\"Техника, технология и техническое творчество\",\"Культура дома, дизайн и технологии\")","v":"Культура дома, дизайн и технологии"},"Моделирование и механическая обработка швейного изделия"]
[166,"Гадершин","Ринат","Рустемович","М","нет","6д",6,10.5,60,"участник","нет ","Киямов Анас Срурович ","МБОУ \"Гимназия №32\"",{"$f":"IF(E167=\"М\",\"Техника, технология и техническое творчество\",\"Культура дома, дизайн и технологии\")","v":"Техника, технология и техническое творчество"},"Ручная деревообработка"]

{"sheet":"Направления","index":1,"n_rows":16,"n_cols":2,"rows_kept":16,"merged":[[0,0,7,0],[8,0,13,0]]}
["1 - Техника, технологии и техническое творчество","1.1  Практика по ручной деревообработке"]
[null,"1.2 Практика по механической деревообработке"]
[null,"1.3 Практика по ручной металлообработке"]
[null,"1.4 Практика по механической металлообработке"]
[null,"1.5 Электрорадиотехника"]
[null,"1.6 3D-моделирование и печать"]
[null,"1.7 Практика по работе на лазерно-гравировальном станке"]
[null,"1.8 Промышленный дизайн"]
["2 - Культура дома, дизайн и технологии","2.1 Ручная обработка швейного изделия или узла"]
[null,"2.2 Механическая обработка швейного изделия или узла + Моделирование"]
[null,"2.3 Обработка швейного изделия или узла на швейно-вышивальном оборудовании + Моделирование"]
[null,"2.4 3D-моделирование и печать"]
[null,"2.5 Практика по работе на лазерно-гравировальном станке"]
[null,"2.6 Промышленный дизайн"]
["3 - Робототехника","3.1 Робототехника"]
["4 - Информационная безопасность","4.1 Не предусмотрена"]